bitfinex/quotes_ETHUSD_20220112
["timestamp","ask_amount","ask_price","bid_price","bid_amount"]
[1642001387313,0.0022737,3377.0,3376.7,1.1885]
[1642001387512,0.00170527,3376.9,3376.5,3.6762]
[1642001387713,0.01180991,3376.9,3376.5,3.6762]
[1642001387914,0.00113685,3376.8,3376.4,3.264]
[1642001388113,0.02193152,3376.7,3376.4,3.264]
[1642001388316,0.40265947,3377.1,3376.4,3.264]
[1642001388513,0.40265947,3377.1,3376.3,2.22071]
[1642001388514,0.40265947,3377.1,3376.6,0.74043]
[1642001388913,0.40265947,3377.1,3376.7,0.00170527]
[1642001389363,0.40265947,3377.1,3376.5,1.48072]
[1642001389665,0.40265947,3377.1,3376.7,0.74038]
[1642001389861,0.40265947,3377.1,3376.6,0.0022737]
[1642001390065,0.40265947,3377.1,3376.8,0.00113685]
[1642001390264,0.40265947,3377.1,3376.6,0.0022737]
[1642001390565,0.40265947,3377.1,3376.9,0.03030917]
[1642001390763,0.40265947,3377.1,3376.8,0.3]
[1642001390963,0.40265947,3377.1,3376.6,1.0426737]
[1642001391169,0.40265947,3377.1,3376.6,0.0022737]
[1642001391363,0.40265947,3377.1,3376.7,0.00170527]
[1642001391561,0.40265947,3377.1,3376.8,0.74031]
[1642001391764,0.40265947,3377.1,3376.6,1.48062]
[1642001391962,0.40265947,3377.1,3376.8,0.74033]
[1642001392161,0.40265947,3377.1,3376.9,0.3]
[1642001393004,0.40265947,3377.1,3376.9,1.0403]
[1642001393208,0.40265947,3377.1,3376.9,1.7065483]
[1642001393605,0.40265947,3377.1,3376.9,1.0403]
[1642001394808,0.40265947,3377.1,3376.8,0.74033]
[1642001395108,0.74031,3377.5,3376.8,0.74033]
[1642001395609,0.00227369,3377.4,3376.8,1.48066]
[1642001396007,0.00170527,3377.3,3376.8,1.48066]
[1642001396210,0.00170527,3377.3,3376.8,0.74033]
[1642001396411,0.00113684,3377.2,3376.8,0.74033]
[1642001396849,0.00284211,3377.5,3377.2,0.74026]
[1642001397647,0.00284211,3377.5,3376.9,1.33120442]
[1642001397851,0.00284211,3377.5,3377.2,0.74027]
[1642001399456,0.00284211,3377.5,3377.3,0.74027]
[1642001399656,0.00284211,3377.5,3377.2,0.74027]
[1642001399657,0.00284211,3377.5,3377.2,2.07152955]
[1642001400708,0.00284211,3377.5,3377.3,1.04014]
[1642001400906,0.00284211,3377.5,3377.4,2.00781499]
[1642001401108,0.00284211,3377.5,3377.4,3.14601496]
[1642001401304,0.00284211,3377.5,3377.4,3.44601496]
[1642001401504,0.00284211,3377.5,3377.4,7.19601496]
[1642001401907,0.00284211,3377.5,3377.4,5.18819997]
[1642001402411,0.00284211,3377.5,3377.4,7.18389374]
[1642001402807,0.8921526,3377.5,3377.4,7.18389374]
[1642001403407,0.8921526,3377.5,3377.4,1.43819997]
[1642001404955,0.8421526,3377.5,3377.4,1.43819997]
[1642001405152,0.8421526,3377.5,3377.4,0.43819997]
[1642001405753,0.1184,3378.8,3378.1,0.6660552]
[1642001405953,3.7738,3379.2,3378.5,0.73997]
[1642001405954,0.1183,3379.0,3378.5,0.73997]
[1642001406154,0.00682108,3378.7,3378.5,0.73997]
[1642001406352,0.1183,3379.1,3378.5,0.73997]
[1642001406353,0.00795793,3378.9,3378.5,0.73997]
[1642001406554,0.00625266,3378.6,3378.5,0.73997]
[1642001406754,0.00738951,3378.8,3378.6,0.3]
[1642001406961,0.73996,3379.2,3378.7,0.3]
[1642001407156,0.5453,3379.8,3379.0,0.73992]
[1642001407354,0.0096632,3379.2,3379.0,1.03992]
[1642001407559,0.0096632,3379.2,3379.0,1.33992]
[1642001407800,0.00909478,3379.1,3379.0,1.33992]
[1642001408003,0.00909478,3379.1,3379.0,1.9317348]
[1642001409403,0.00909478,3379.1,3379.0,4.71315548]
[1642001409604,0.00909478,3379.1,3379.0,1.32416913]
[1642001410307,0.00909478,3379.1,3379.0,3.34637725]
[1642001410505,0.00909478,3379.1,3379.0,1.32416913]
[1642001411005,0.00909478,3379.1,3379.0,2.32416913]
[1642001411206,20.0,3380.0,3379.6,0.73969]
[1642001411558,0.00454739,3379.9,3379.7,0.3]
[1642001411748,0.00454739,3379.9,3379.7,0.6]
[1642001411948,0.00397896,3379.8,3379.7,0.3]
[1642001412349,0.00397896,3379.8,3379.7,1.03973]
[1642001412549,0.00397896,3379.8,3379.7,1.7054549]
[1642001412754,0.00397896,3379.8,3379.7,2.0054549]
[1642001412957,0.00397896,3379.8,3379.7,2.3054549]
[1642001413157,0.43097896,3379.8,3379.7,0.73973]
[1642001413357,0.43097896,3379.8,3379.2,2.95956]
[1642001413557,0.43097896,3379.8,3378.3,6.4831561]
[1642001413558,0.1183,3379.7,3378.3,6.4831561]
[1642001413758,0.60751298,3378.9,3378.6,0.6660363]
[1642001413958,0.60751298,3378.9,3378.7,2.21956]
[1642001414160,0.60751298,3378.9,3378.8,1.54969239]
[1642001414359,0.00284212,3379.6,3378.8,1.54969239]
[1642001414559,0.00284212,3379.6,3379.2,0.73981]
[1642001414759,0.427,3379.7,3379.2,0.73981]
[1642001414760,0.00227369,3379.5,3379.2,0.73981]
[1642001414959,0.00227369,3379.5,3379.3,0.73987]
[1642001415308,1.96883897,3379.6,3379.3,0.3]
[1642001415309,0.00170527,3379.4,3379.3,0.3]
[1642001416808,0.00170527,3379.4,3379.2,2.21954]
[1642001417009,0.00170527,3379.4,3379.3,0.3]
[1642001417210,0.427,3379.7,3379.3,0.3]
[1642001417408,0.427,3379.7,3379.5,0.73981]
[1642001417608,0.00284212,3379.6,3379.5,0.73981]
[1642001418811,0.427,3379.7,3379.5,0.73981]
[1642001419059,0.427,3379.7,3379.5,2.0712952]
[1642001419450,0.427,3379.7,3379.6,0.3]
[1642001420252,0.427,3379.7,3379.6,0.08561836]
[1642001420455,0.427,3379.7,3379.4,2.21938]
[1642001420857,0.427,3379.7,3379.1,1.47981]
[1642001420858,1.03446858,3379.6,3379.1,1.47981]
[1642001421055,1.03446858,3379.6,3378.9,0.00113685]
[1642001421056,5.7727208,3379.5,3378.9,0.00113685]
[1642001421254,1.11761029,3379.4,3379.2,0.0022737]
[1642001421453,1.5,3379.2,3379.1,0.74001]
[1642001421654,1.927,3379.2,3379.1,0.74001]
[1642001421858,2.92631029,3379.2,3379.1,0.74001]
[1642001422055,1.927,3379.2,3379.1,0.74001]
[1642001422355,1.927,3379.2,3379.1,1.47996]
[1642001423502,1.927,3379.2,3379.1,1.77996]
[1642001424702,1.927,3379.2,3379.1,1.47996]
[1642001424904,1.927,3379.2,3378.5,0.74009]
[1642001425102,1.927,3379.2,3378.1,11.56568]
[1642001425103,2.26727424,3379.1,3378.1,4.43988]
[1642001425302,1.15022605,3378.8,3378.6,0.00568424]
[1642001425506,7.627,3378.7,3378.6,0.00568424]
[1642001425905,7.627,3378.7,3378.1,4.43988]
[1642001425906,8.19362605,3378.6,3378.1,4.43988]
[1642001426103,8.19362605,3378.6,3378.2,0.74246369]
[1642001426104,0.427,3378.5,3378.2,0.74246369]
[1642001426562,0.427,3378.5,3378.3,0.00170527]
[1642001426949,8.05847,3378.4,3378.3,0.00170527]
[1642001427152,8.05847,3378.4,3378.1,1.48033]
[1642001427153,8.48547,3378.4,3378.1,1.48033]
[1642001427551,0.99962605,3378.3,3378.1,1.48033]
[1642001427956,7.7453,3378.4,3378.1,1.48033]
[1642001428160,7.627,3378.4,3378.1,1.48033]
[1642001428957,0.427,3378.4,3378.1,2.1463639]
[1642001429158,0.427,3378.4,3378.2,0.3488396]
[1642001429559,0.427,3378.4,3378.3,0.00170527]
[1642001430710,0.427,3378.4,3377.7,0.74026]
[1642001430711,8.19792078,3378.3,3377.7,0.74026]
[1642001430907,2.57070429,3378.2,3377.7,0.74026]
[1642001431106,2.45230429,3378.2,3377.8,0.00284212]
[1642001431307,0.427,3378.2,3377.8,0.00284212]
[1642001431510,0.74025,3378.1,3377.6,0.00397896]
[1642001431706,0.427,3378.0,3377.6,0.74425896]
[1642001431907,0.88922946,3377.8,3377.6,0.74425896]
[1642001432109,0.88922946,3377.8,3377.7,0.00341054]
[1642001432307,4.43922946,3377.8,3377.7,0.00341054]
[1642001432513,3.977,3377.8,3377.2,1.48062]
[1642001432714,2.0,3377.7,3377.2,1.48062]
[1642001432916,0.5454,3377.6,3377.3,0.00227369]
[1642001433316,1.5,3377.5,3376.5,1.4808]
[1642001433515,0.5454,3377.4,3376.7,0.00568423]
[1642001433713,7.0,3377.2,3376.5,0.15405266]
[1642001433912,0.427,3377.1,3376.5,0.15405266]
[1642001434355,0.0022737,3377.0,3376.5,0.15405266]
[1642001434559,0.427,3376.9,3376.2,4.69196]
[1642001434760,0.42870527,3376.9,3376.2,4.69196]
[1642001435057,0.00113685,3376.8,3376.3,0.24270527]
[1642001435263,0.42813685,3376.8,3376.3,0.24270527]
[1642001435463,4.6,3376.7,3376.1,4.04817783]
[1642001435665,0.42813685,3376.8,3376.3,0.74043]
[1642001435867,0.00113685,3376.6,3376.3,0.74043]
[1642001436066,0.427,3376.8,3376.3,0.74043]
[1642001436067,0.00170528,3376.7,3376.3,0.74043]
[1642001436362,0.00113685,3376.6,3376.3,0.74043]
[1642001436567,0.00113685,3376.6,3376.2,0.00113684]
[1642001436763,0.00170528,3376.7,3376.2,0.00113684]
[1642001436965,0.00170528,3376.7,3376.1,0.00170527]
[1642001437166,0.00113685,3376.6,3376.1,0.00170527]
[1642001437564,0.00170528,3376.7,3376.1,0.00170527]
[1642001438010,1.62158135,3376.8,3376.1,0.00170527]
[1642001438011,0.00113685,3376.6,3376.1,0.00170527]
[1642001438414,3.10271135,3376.8,3376.1,0.00170527]
[1642001438415,0.00170528,3376.7,3376.1,0.00170527]
[1642001438814,0.00113685,3376.6,3376.1,0.00170527]
[1642001439017,0.00113685,3376.6,3376.0,0.00227369]
[1642001439216,0.427,3376.5,3376.1,0.74044]
[1642001439415,0.427,3376.5,3375.9,1.15297329]
[1642001439619,0.00227369,3376.4,3375.9,1.15297329]
[1642001439817,0.00227369,3376.4,3375.9,0.15297329]
[1642001440018,0.00170527,3376.3,3375.9,1.15297329]
[1642001440218,0.00170527,3376.3,3376.1,0.74044]
[1642001440418,0.00113685,3376.2,3376.1,0.74044]
[1642001440819,0.00227369,3376.2,3376.1,0.74044]
[1642001441220,0.00227369,3376.2,3376.1,1.04044]
[1642001442056,0.00227369,3376.2,3376.1,0.74044]
[1642001442254,0.00227369,3376.2,3375.8,4.11175061]
[1642001442456,0.88974302,3375.9,3375.8,2.96177]
[1642001442857,0.88974302,3375.9,3375.8,2.96290685]
[1642001443058,0.00227369,3376.2,3375.8,2.96290685]
[1642001444761,0.00227369,3376.2,3375.8,1.48198685]
[1642001445163,0.00227369,3376.2,3375.8,0.59213618]
[1642001446007,0.00227369,3376.2,3375.8,0.58227571]
[1642001447308,0.427,3376.1,3375.8,0.00113685]
[1642001447507,0.427,3376.1,3375.6,0.69175685]
[1642001447711,0.00113685,3376.0,3375.7,0.00170527]
[1642001448111,0.00113685,3376.0,3375.6,0.00113684]
[1642001448307,0.00113685,3376.0,3375.5,0.00170527]
[1642001448508,1.25469548,3376.0,3375.5,0.00170527]
[1642001448910,1.25469548,3376.0,3375.3,1.75757994]
[1642001448911,1.25469548,3376.0,3375.4,0.00227369]
[1642001450255,0.00113685,3376.0,3375.4,0.00227369]
[1642001450455,0.00113685,3376.0,3375.5,0.05843639]
[1642001450858,0.00113685,3376.0,3375.3,0.92828566]
[1642001451056,0.427,3376.1,3375.3,0.92828566]
[1642001451057,0.00284212,3375.9,3375.3,0.92828566]
[1642001451457,0.00227369,3375.8,3375.3,0.92828566]
[1642001451658,0.00227369,3375.8,3375.6,0.74064]
[1642001451860,0.427,3376.1,3375.6,0.74064]
[1642001451861,0.00170527,3375.7,3375.6,0.74064]
[1642001454110,0.00170527,3375.7,3375.4,0.74064]
[1642001454111,0.06926242,3375.6,3375.4,0.59127564]
[1642001454314,0.00170527,3375.7,3375.4,0.59127564]
[1642001454514,0.00113685,3375.6,3375.4,0.59127564]
[1642001454717,0.00113685,3375.6,3375.4,2.87062249]
[1642001454913,0.00341054,3376.0,3375.4,1.79057564]
[1642001455113,0.00341054,3376.0,3375.7,0.74057]
[1642001455314,0.00284212,3375.9,3375.7,0.74057]
[1642001455712,0.00227369,3375.8,3375.7,0.74057]
[1642001456113,0.00227369,3375.8,3375.5,2.96222]
[1642001456313,0.00227369,3375.8,3375.6,1.48118]
[1642001456560,0.00170527,3375.7,3375.6,1.48118]
[1642001456963,0.00568423,3375.7,3375.6,1.48118]
[1642001457964,0.00568423,3375.7,3375.6,2.78118]
[1642001458164,0.00568423,3375.7,3375.6,1.78118]
[1642001458364,0.00568423,3375.7,3375.6,2.78118]
[1642001458766,0.00568423,3375.7,3375.6,1.78118]
[1642001459167,0.00568423,3375.7,3375.6,0.89134987]
[1642001461852,0.00568423,3375.7,3375.5,2.96222]
[1642001462350,0.00113685,3375.6,3375.5,2.96222]
[1642001463351,0.00113685,3375.6,3375.5,1.78109]
[1642001463752,0.00113685,3375.6,3375.5,0.8911754]
[1642001465159,0.42813685,3375.6,3375.5,0.8911754]
[1642001465560,0.42813685,3375.6,3375.5,1.1911754]
[1642001466163,0.42813685,3375.6,3375.5,0.8911754]
[1642001466359,0.42813685,3375.6,3375.5,1.1911754]
[1642001467161,0.00113685,3375.6,3375.5,1.1911754]
[1642001468217,0.00113685,3375.6,3375.5,0.30123303]
[1642001470323,0.00113685,3375.6,3375.5,0.60123303]
[1642001471860,0.00113685,3375.6,3375.4,1.11841369]
[1642001472064,0.42813685,3375.6,3375.4,1.11841369]
[1642001472864,0.42813685,3375.6,3375.5,1.48109]
[1642001473363,0.42813685,3375.6,3375.5,1.78109]
[1642001474768,0.42813685,3375.6,3375.5,0.89107041]
[1642001476313,0.42813685,3375.6,3375.5,1.19107041]
[1642001478017,0.42813685,3375.6,3375.5,0.30098419]
[1642001479264,0.42813685,3375.6,3374.8,3.9495]
[1642001479265,3.49653685,3375.6,3374.8,3.9495]
[1642001479466,0.01289665,3375.1,3374.2,2.9627]
[1642001479667,9.22745,3375.0,3374.9,0.00284212]
[1642001480069,16.89344365,3375.0,3374.1,0.0073895]
[1642001480272,5.333,3374.8,3374.1,0.0073895]
[1642001480477,5.333,3374.8,3373.8,1.2429]
[1642001480478,5.333,3374.4,3373.9,0.00852635]
[1642001480668,0.1774,3374.6,3373.2,2.84502251]
[1642001480669,12.533,3374.0,3373.2,2.84502251]
[1642001480870,0.5454,3373.9,3372.7,1.50158061]
[1642001481071,5.333,3373.5,3373.3,0.01193689]
[1642001481270,8.1153202,3373.4,3373.3,0.01193689]
[1642001481469,0.99992078,3373.3,3372.7,2.1958175]
[1642001481669,0.427,3373.2,3372.8,0.00284212]
[1642001481871,0.74133,3373.1,3372.8,0.00284212]
[1642001482071,0.427,3373.0,3372.8,0.00284212]
[1642001482472,7.2,3372.9,3372.7,1.45442273]
[1642001482675,1.42692078,3372.8,3372.7,1.45442273]
[1642001482915,0.427,3372.8,3372.6,0.118499]
[1642001483114,4.99992078,3372.7,3372.6,0.118499]
[1642001483313,5.42692078,3372.7,3372.6,0.118499]
[1642001483514,9.76,3372.7,3372.6,0.11963585]
[1642001483715,0.99878393,3372.6,3371.8,7.59283]
[1642001483918,0.99878393,3372.6,3372.0,0.74142]
[1642001483919,0.427,3372.5,3372.0,0.74142]
[1642001484514,0.427,3372.5,3372.1,1.48254]
[1642001484714,0.427,3372.5,3372.0,2.22396]
[1642001484916,0.427,3372.5,3372.2,0.00227369]
[1642001485219,0.427,3372.5,3372.1,0.00284211]
[1642001485615,0.427,3372.5,3371.8,0.30454738]
[1642001485815,0.427,3372.5,3372.0,1.4086966]
[1642001485816,1.40499307,3372.2,3372.0,1.4086966]
[1642001486015,1.40499307,3372.2,3372.1,0.3]
[1642001486016,1.83199307,3372.2,3372.1,0.3]
[1642001486217,1.83199307,3372.2,3372.1,0.00284211]
[1642001486584,7.2,3372.1,3371.3,4.104806]
[1642001486773,1.16858,3372.0,3371.8,0.00170527]
[1642001486972,1.16858,3372.0,3371.4,0.00397897]
[1642001487578,1.16858,3372.0,3371.3,0.00454739]
[1642001487887,0.427,3372.0,3371.2,0.95930819]
[1642001488079,0.00341054,3371.9,3371.2,0.95930819]
[1642001488280,0.427,3371.8,3371.2,0.95930819]
[1642001488478,0.42984212,3371.8,3371.2,0.95930819]
[1642001488683,0.00227369,3371.7,3371.2,0.95930819]
[1642001488880,0.427,3371.6,3371.2,0.90930819]
[1642001489083,1.17039527,3371.6,3371.2,0.90930819]
[1642001489281,0.00113685,3371.5,3371.2,0.90930819]
[1642001489482,0.427,3371.4,3371.2,0.90930819]
[1642001490082,0.427,3371.4,3371.2,1.50930819]
[1642001490315,0.427,3371.4,3370.7,0.00603563]
[1642001490316,7.2,3371.3,3370.7,0.00603563]
[1642001490523,1.60134034,3371.1,3370.7,0.00603563]
[1642001490714,1.60134034,3371.1,3370.8,0.00284212]
[1642001490715,0.47100668,3371.0,3370.8,0.00284212]
[1642001491117,0.427,3371.0,3370.8,0.00284212]
[1642001491616,5.5,3370.9,3370.5,0.74176]
[1642001491819,0.427,3370.8,3370.4,0.5511195]
[1642001492021,0.427,3370.8,3370.6,0.00113685]
[1642001492421,0.427,3370.8,3370.6,0.30113685]
[1642001492621,1.20192987,3370.8,3370.4,0.00227369]
[1642001493222,1.20192987,3370.8,3370.5,0.74175]
[1642001493421,1.20192987,3370.8,3370.4,0.00227369]
[1642001493820,1.20192987,3370.8,3370.3,1.24327369]
[1642001494068,0.00170527,3370.7,3370.3,1.24327369]
[1642001494268,0.00170527,3370.7,3370.4,0.74176]
[1642001494469,0.00113684,3370.6,3370.5,0.74176]
[1642001494667,0.00113684,3370.6,3370.5,1.04176]
[1642001495267,0.00113684,3370.6,3370.5,1.34176]
[1642001496269,0.00113684,3370.6,3370.5,0.3]
[1642001496470,0.00113684,3370.6,3370.2,2.96689]
[1642001496671,0.00113684,3370.6,3369.4,5.9291858]
[1642001496672,0.04998695,3370.5,3369.7,7.4432]
[1642001496870,0.42813684,3370.6,3369.7,3.7972]
[1642001496871,0.427,3370.4,3369.7,3.7972]
[1642001497071,1.58573521,3370.3,3370.1,0.00170527]
[1642001497272,0.427,3370.2,3370.1,0.00170527]
[1642001498233,0.427,3370.2,3369.6,0.002405]
[1642001498234,0.09944267,3369.9,3369.6,0.002405]
[1642001498431,0.09944267,3369.9,3369.6,1.486085]
[1642001498629,1.87869742,3370.4,3369.7,0.0022737]
[1642001499129,0.00113684,3370.3,3369.9,0.74187]
[1642001499328,0.42813684,3370.3,3369.9,0.74187]
[1642001500533,0.42813684,3370.3,3369.9,1.48374]
[1642001501133,0.40523399,3370.3,3369.9,1.48374]
[1642001501340,0.40523399,3370.3,3370.0,0.00170527]
[1642001501767,4.6,3370.2,3369.9,0.59410023]
[1642001501969,4.6,3370.2,3369.7,1.4836]
[1642001501970,0.427,3370.1,3369.7,1.4836]
[1642001502368,0.427,3370.1,3369.8,0.00113684]
[1642001502568,2.75,3370.0,3369.6,1.486085]
[1642001502768,0.427,3369.9,3369.6,2.228025]
[1642001503168,0.002,3369.8,3369.6,0.002405]
[1642001503375,7.627,3369.7,3369.6,0.002405]
[1642001503770,7.627,3369.7,3369.6,0.00354185]
[1642001503973,0.427,3369.7,3369.6,0.00354185]
[1642001504171,1.81878474,3369.7,3369.6,0.00354185]
[1642001504373,7.21878474,3369.7,3369.6,0.00354185]
[1642001504574,8.19645815,3369.6,3368.6,0.74216]
[1642001504770,0.427,3369.5,3368.6,0.74216]
[1642001504974,0.427,3369.5,3368.5,5.0122]
[1642001504975,0.427,3369.5,3368.8,0.74667739]
[1642001505421,0.427,3369.5,3368.9,0.00397896]
[1642001505619,3.6,3369.4,3369.1,0.74205]
[1642001505819,0.427,3369.3,3368.5,1.2341]
[1642001506023,0.42927369,3369.3,3368.4,1.1816]
[1642001506219,0.00170527,3369.2,3368.6,0.00170528]
[1642001506425,0.427,3369.1,3368.6,0.00170528]
[1642001506622,0.427,3369.1,3368.4,0.00284212]
[1642001506623,0.42813684,3369.1,3368.4,0.00284212]
[1642001506826,0.42813684,3369.1,3368.4,1.48729212]
[1642001507028,0.42813684,3369.1,3368.4,0.59273669]
[1642001507224,0.42813684,3369.1,3368.5,0.0022737]
[1642001508631,0.42813684,3369.1,3368.7,1.48436]
[1642001508829,0.42813684,3369.1,3368.5,0.0022737]
[1642001509271,0.42813684,3369.1,3368.3,0.00341055]
[1642001510272,0.42813684,3369.1,3368.4,1.48448]
[1642001510670,0.42813684,3369.1,3368.5,0.0022737]
[1642001511175,0.42813684,3369.1,3368.7,0.74217]
[1642001511372,0.42813684,3369.1,3368.5,0.0022737]
[1642001511579,1.98947879,3369.0,3368.5,0.0022737]
[1642001511777,0.99945815,3368.7,3368.3,0.00341055]
[1642001511977,0.427,3368.6,3368.3,0.00341055]
[1642001512378,0.427,3368.6,3368.2,0.11624944]
[1642001512575,0.1187,3369.0,3368.2,0.11624944]
[1642001512815,0.427,3368.9,3368.3,0.00113684]
[1642001513018,1.17163371,3368.9,3368.3,0.00113684]
[1642001513418,0.42927371,3368.9,3368.3,0.00113684]
[1642001513618,0.42927371,3368.9,3368.4,1.22886851]
[1642001513824,0.42927371,3368.9,3368.4,1.97110851]
[1642001513825,0.00227371,3368.9,3368.4,1.97110851]
[1642001514217,0.00227371,3368.9,3368.5,0.1187]
[1642001514419,0.00227371,3368.9,3368.5,0.86086]
[1642001514822,0.37927371,3369.6,3369.3,1.64392112]
[1642001515019,0.37927371,3369.6,3368.7,0.1187]
[1642001515219,0.00341054,3369.5,3368.7,0.1187]
[1642001515418,0.00341054,3369.5,3368.6,1.48577528]
[1642001515419,1.98458996,3369.5,3368.6,1.48577528]
[1642001515621,0.00284211,3369.4,3368.7,0.74219]
[1642001515819,0.00284211,3369.4,3368.7,0.00113685]
[1642001516021,0.42927369,3369.3,3368.6,1.33573614]
[1642001516221,0.427,3369.2,3368.6,1.33573614]
[1642001516423,0.42984212,3369.2,3368.6,1.33573614]
[1642001516662,0.42984212,3369.2,3368.6,1.28573614]
[1642001516663,0.00227369,3369.1,3368.6,1.28573614]
[1642001516863,0.42927369,3369.1,3368.6,1.28573614]
[1642001517066,0.00170527,3369.0,3368.6,1.28573614]
[1642001517463,0.00113685,3368.9,3368.7,0.74218]
[1642001517762,0.00170527,3369.0,3368.7,0.74218]
[1642001518266,0.00113685,3368.9,3368.7,2.22647]
[1642001518666,0.00170527,3369.0,3368.7,2.22647]
[1642001519070,0.00113685,3368.9,3368.7,2.22647]
[1642001519467,0.00170527,3369.0,3368.7,2.22647]
[1642001519868,0.00113685,3368.9,3368.7,2.22647]
[1642001520069,0.00113685,3368.9,3368.8,0.1187]
[1642001520313,0.00170527,3369.0,3368.8,0.1187]
[1642001520514,0.00113685,3368.9,3368.8,0.1187]
[1642001520714,0.00113685,3368.9,3368.7,1.45332982]
[1642001520914,0.00113685,3368.9,3368.8,0.1187]
[1642001522418,0.00113685,3368.9,3368.8,2.65898975]
[1642001523220,0.00113685,3368.9,3368.8,0.1187]
[1642001523419,0.00113685,3368.9,3368.7,3.99361957]
[1642001523820,0.00113685,3368.9,3368.7,2.54028975]
[1642001524070,0.00113685,3368.9,3368.6,1.28573614]
[1642001524071,4.427,3368.8,3368.6,1.28573614]
[1642001524266,0.427,3368.8,3368.6,1.28573614]
[1642001524662,0.427,3368.8,3368.4,2.96879]
[1642001524663,0.427,3368.8,3368.4,1.48447]
[1642001524864,1.16931,3368.8,3368.4,1.48447]
[1642001525063,1.16931,3368.8,3368.5,0.00113685]
[1642001525466,1.16931,3368.8,3368.4,0.59381137]
[1642001525666,0.00113685,3368.7,3368.4,0.59381137]
[1642001525867,0.42813685,3368.7,3368.4,0.59381137]
[1642001526467,0.42813685,3368.7,3368.4,1.33608137]
[1642001526667,0.42813685,3368.7,3368.4,0.59381137]
[1642001527071,0.42813685,3368.7,3368.2,0.11624944]
[1642001527072,2.0,3368.6,3368.2,0.11624944]
[1642001527276,7.627,3368.5,3367.8,2.92799801]
[1642001527472,7.4517,3368.4,3368.3,0.00113685]
[1642001527676,0.7425967,3368.1,3367.8,2.92799801]
[1642001527922,7.2,3367.9,3367.7,2.13376689]
[1642001528122,7.2,3367.9,3367.4,2.84502251]
[1642001528123,7.2,3367.7,3367.4,2.84502251]
[1642001528323,0.5457,3367.6,3367.4,2.84502251]
[1642001528522,5.8787,3367.6,3367.5,0.00227369]
[1642001528724,6.8787,3367.6,3367.5,0.00227369]
[1642001529022,7.2,3367.5,3367.4,2.84502251]
[1642001529224,7.7457,3367.5,3366.9,3.55637286]
[1642001529426,7.7457,3367.5,3366.1,1.0]
[1642001529427,0.7428,3366.9,3366.1,1.0]
[1642001529625,5.333,3366.6,3366.1,1.0]
[1642001529825,2.5458,3366.5,3366.1,1.0]
[1642001530030,2.5458,3366.5,3366.0,2.84502251]
[1642001530031,7.2,3366.4,3366.0,2.84502251]
[1642001530224,0.5458,3366.3,3366.0,2.84502251]
[1642001530422,0.5458,3366.3,3366.1,0.00795793]
[1642001530423,13.99463095,3366.2,3366.1,0.00795793]
[1642001530627,7.2,3365.9,3365.4,0.00795793]
[1642001530825,7.2,3365.9,3365.2,0.79300811]
[1642001530826,5.333,3365.5,3365.2,0.79300811]
[1642001531025,5.333,3365.5,3364.5,5.94199296]
[1642001531026,15.09102721,3365.4,3364.5,5.94199296]
[1642001531229,15.09102721,3365.4,3364.2,0.5]
[1642001531230,5.333,3364.9,3364.2,0.5]
[1642001531570,3.61826531,3364.8,3364.6,0.00852635]
[1642001531763,0.9909318,3364.5,3364.2,0.5]
[1642001531970,0.427,3364.4,3364.2,0.5]
[1642001532163,0.427,3364.4,3364.3,0.00170527]
[1642001532566,0.427,3364.7,3364.3,0.00170527]
[1642001532764,0.427,3364.7,3364.4,2.247663]
[1642001533166,0.00227369,3365.0,3364.4,2.247663]
[1642001533567,0.00170527,3364.9,3364.4,2.247663]
[1642001533766,0.00170527,3364.9,3364.5,1.31692518]
[1642001533967,1.4415858,3366.3,3364.4,2.247663]
[1642001533968,0.00113684,3364.8,3364.4,2.247663]
[1642001534172,0.00113684,3364.8,3364.6,0.74293]
[1642001534368,0.427,3365.6,3364.6,0.59290137]
[1642001534767,0.00511581,3365.5,3364.6,0.59290137]
[1642001535318,0.427,3365.6,3364.6,0.59290137]
[1642001535319,0.00454738,3365.4,3364.6,0.59290137]
[1642001535718,0.00397896,3365.3,3364.6,0.59290137]
[1642001536015,0.00341054,3365.2,3364.7,3.48593]
[1642001536217,0.00341054,3365.2,3364.8,0.74303]
[1642001536416,0.427,3366.1,3365.0,1.48571]
[1642001536616,0.427,3366.1,3364.8,7.94303]
[1642001536617,0.427,3366.1,3365.6,1.48736804]
[1642001536815,0.00511581,3366.0,3365.6,1.48736804]
[1642001537016,0.00511581,3366.0,3365.7,0.74289]
[1642001537218,0.427,3366.1,3365.6,1.48736804]
[1642001537219,0.74754739,3365.9,3365.6,1.48736804]
[1642001537617,0.00397897,3365.8,3365.6,1.48736804]
[1642001537819,0.00397897,3365.8,3364.9,0.00113684]
[1642001538021,0.5458,3366.1,3365.3,0.74298]
[1642001538022,0.9999318,3365.6,3365.3,0.74298]
[1642001538419,0.0022737,3365.5,3365.3,0.74298]
[1642001538918,0.427,3366.1,3365.3,1.89188958]
[1642001538919,0.00170527,3365.4,3365.3,1.89188958]
[1642001540068,0.00170527,3365.4,3365.3,1.14890958]
[1642001540466,0.00170527,3365.4,3365.3,2.61284214]
[1642001540665,0.00170527,3365.4,3365.3,1.14890958]
[1642001540867,6.10170527,3365.4,3365.0,0.74305]
[1642001541066,6.10170527,3365.4,3364.3,5.11783055]
[1642001541067,0.04701075,3365.2,3364.4,0.00397896]
[1642001541470,3.61628474,3365.3,3364.4,0.00397896]
[1642001541667,1.54693685,3365.3,3364.6,1.29825923]
[1642001541869,1.54693685,3365.3,3364.7,0.7431]
[1642001542066,0.54693685,3365.3,3364.7,2.09693834]
[1642001542269,0.54693685,3365.3,3364.8,0.00170527]
[1642001542674,2.11214794,3365.2,3364.8,0.00170527]
[1642001542916,0.99822653,3364.8,3364.0,0.00603957]
[1642001543122,0.74328,3364.6,3364.1,0.00397896]
[1642001543317,0.5458,3364.5,3364.1,0.00397896]
[1642001543617,1.6107,3364.5,3364.2,0.74323]
[1642001544017,1.6107,3364.5,3364.3,0.00284211]
[1642001544217,2.6107,3364.5,3364.3,0.00284211]
[1642001545219,2.6107,3364.5,3364.0,0.00603957]
[1642001545220,0.99638442,3364.3,3364.0,0.00603957]
[1642001545420,0.88569401,3364.0,3363.5,2.09882]
[1642001545619,0.88569401,3364.0,3363.8,0.74331]
[1642001545821,0.88569401,3364.0,3363.9,6.7189]